[Event "9. Korbacher Open 2017"]
[Site "Korbach"]
[Date "2017.10.19"]
[Round "1"]
[White "Held, Martin"]
[Black "Dijkhuis, Oele"]
[Result "0-1"]
[ECO "B78"]
[WhiteElo "1821"]
[BlackElo "2035"]
[Annotator "NA RC"]
[PlyCount "61"]
[EventDate "2017.??.??"]
[EventType "swiss"]
[EventCountry "GER"]
[SourceTitle "playchess.com"]
[Source "ChessBase"]
[SourceQuality "1"]
[TimeControl "40/5400+30:1800+30"]

{[%evp 13,60,30,27,17,32767,32767,32767,20,34,40,32767,19,43,0,-1,7,-1,32767,32767,32767,32767,-37,-54,-38,-85,-217,-199,-198,-225,-525,-673,-740,-892,-765,-835,-837,-935,-1381,-1964,-5289,-29976,-29991,-29992,-29992,-29993,-29993,-29994,-29994,-29995]} 1. e4 {[%emt 0:00:00]} c5 {[%emt 0:00:06]} 2. Nf3 {[%emt 0:00:13]} d6 {[%emt 0:00:08]} 3. d4 {[%emt 0:00:21]} cxd4 {[%emt 0:00:06]} 4. Nxd4 {[%emt 0:00:06]} Nf6 {[%emt 0:00:07]} 5. Nc3 {[%emt 0:00:05]} g6 {[%emt 0:00:08]} 6. Be3 {[%emt 0:00:40]} Bg7 {[%emt 0:00:08]} 7. Bc4 {[%emt 0:01:28]} O-O {[%emt 0:00:19]} 8. f3 {[%emt 0:01:38]} Nc6 {[%emt 0:00:11]} 9. Qd2 {[%emt 0:00:36]} Bd7 {[%emt 0:00:19]} 10. O-O-O {[%emt 0:04:35]} Rc8 {[%emt 0:00:10]} 11. Bb3 {[%emt 0:00:05]} Nxd4 {[%emt 0:00:08]} 12. Bxd4 {[%emt 0:01:33]} b5 {[%emt 0:00:09]} 13. e5 {[%emt 0:12:13] B78: Sicilian Dragon: Yugoslav Attack, 9 Bc4 Bd7 10 0-0-0 Rc8} dxe5 {[%emt 0:00:27]} 14. Bxe5 {[%emt 0:01:33] LiveBook: 40 Games} Bc6 {[%emt 0:00:40]} 15. Qg5 {[%emt 0:12:22]} (15. Qxd8 Rfxd8 16. Ne2 Bh6+ 17. Kb1 Nd7 18. Bd4 a5 19. a3 b4 20. axb4 axb4 {0-1 (47) Yu,Y (2744)-Jones,G (2625) Gibraltar 2016}) 15... Qb6 {[%emt 0:01:15]} 16. Bd4 {[%emt 0:03:19]} Qb7 {[%emt 0:02:23]} 17. h4 {[%emt 0:05:57]} a5 {[%emt 0:04:09]} 18. h5 {[%emt 0:11:27]} h6 $1 {[%emt 0:01:39]} 19. Qxg6 $146 {[%emt 0:08:51]} ({Predecessor:} 19. Qd2 g5 {0-1 (41) Baum,H (2364)-Gerhards,G (2091) ICCF email 2007}) (19. Qe3 $17 a4 20. Bxf7+ Kxf7 21. hxg6+ Kxg6 22. Ne2 (22. Bxf6 $2 exf6 23. a3 Qc7 $19)) 19... a4 {[%emt 0:01:18]} 20. Bxf7+ {[%emt 0:04:44]} Rxf7 {[%emt 0:00:31]} 21. g4 $2 {[%emt 0:08:08]} (21. a3) 21... b4 {[%emt 0:02:16]} 22. g5 {[%emt 0:02:45]} bxc3 {[%emt 0:04:03]} 23. Bxc3 {[%emt 0:01:23]} hxg5 {[%emt 0:03:06]} 24. h6 {[%emt 0:01:00]} Bxf3 {[%emt 0:00:28]} 25. Bxf6 {[%emt 0:01:49]} exf6 {[%emt 0:01:07]} 26. hxg7 {[%emt 0:01:22]} Bxh1 {[%emt 0:01:32]} 27. Qh6 {[%emt 0:03:01] [#]} Rxc2+ $1 {[%emt 0:01:22]} 28. Kxc2 {[%emt 0:00:23]} Qe4+ {[%emt 0:00:41]} 29. Rd3 {[%emt 0:02:06]} Qe2+ {[%emt 0:01:07]} 30. Kc3 {[%emt 0:00:51]} Rc7+ {[%emt 0:00:24]} 31. Kd4 0-1

[Event "9. Korbacher Open 2017"]
[Site "Korbach"]
[Date "2017.10.19"]
[Round "1"]
[White "Shkolnyk, Boris"]
[Black "Rutz, Matthias"]
[Result "1/2-1/2"]
[ECO "D04"]
[WhiteElo "1812"]
[BlackElo "2046"]
[Annotator "NA"]
[PlyCount "67"]
[EventDate "2017.??.??"]
[EventType "swiss"]
[EventCountry "GER"]
[SourceTitle "playchess.com"]
[Source "ChessBase"]
[SourceQuality "1"]
[TimeControl "40/5400+30:1800+30"]

{[%evp 11,67,6,10,0,32767,32767,20,18,32767,32767,8,0,0,6,9,-32,-33,-28,-5,-12,0,0,0,-18,-9,-8,-8,-7,-2,-10,0,0,0,0,-2,-11,-7,-65,-48,-49,-32,-54,-44,-58,-39,-69,-53,-66,-24,-42,-13,-14,-22,-22,-15,-8,32767,-12]} 1. d4 {[%emt 0:00:00]} d5 {[%emt 0:00:14]} 2. Nf3 {[%emt 0:00:02]} Nf6 {[%emt 0:00:56]} 3. e3 {[%emt 0:00:34]} c5 {[%emt 0:02:32]} 4. c4 {[%emt 0:00:35]} e6 {[%emt 0:00:39]} 5. Nc3 {[%emt 0:00:25]} Nc6 {[%emt 0:03:11]} 6. cxd5 {[%emt 0:00:33]} Nxd5 {[%emt 0:00:47] LiveBook: 591 Games} 7. Be2 {[%emt 0:03:17]} Be7 {[%emt 0:01:13] D41: Queen's Gambit Declined: Semi-Tarrasch with 5 cxd5} (7... cxd4 8. Nxd4 Bb4 9. Nxc6 bxc6 10. Bd2 Nxc3 11. Bxc3 Bxc3+ 12. bxc3 Qa5 13. O-O O-O 14. Qd6 Ba6 15. Bxa6 Qxa6 {½-½ (30) Krzyzanowski,M (2420)-Klekowski,M (2490) Polanica Zdroj 2015}) 8. Nxd5 {[%emt 0:00:47]} Qxd5 {[%emt 0:00:58]} 9. dxc5 {[%emt 0:02:36]} Qxd1+ {[%emt 0:03:19]} 10. Bxd1 {[%emt 0:00:15]} Bxc5 {[%emt 0:00:54]} 11. Ba4 $146 {[%emt 0:01:35]} ({Predecessor:} 11. Bd2 Bd7 12. Bc3 O-O 13. Be2 Rfd8 14. O-O Be8 15. Rfd1 Rac8 16. Rxd8 {½-½ (16) Geller,E-Averbakh,Y Moscow 1961}) 11... Bd7 {[%emt 0:00:45]} 12. O-O {[%emt 0:01:02]} a6 {[%emt 0:06:01]} 13. Bxc6 {[%emt 0:00:46]} Bxc6 {[%emt 0:00:11]} 14. Bd2 {[%emt 0:00:58]} Bxf3 {[%emt 0:05:23]} 15. gxf3 {[%emt 0:00:14]} Rd8 {[%emt 0:04:59]} 16. Bc3 {[%emt 0:02:26]} Ke7 {[%emt 0:01:53]} 17. Rfd1 {[%emt 0:03:38]} f6 {[%emt 0:00:48]} 18. f4 {[%emt 0:01:53]} Rxd1+ {[%emt 0:06:16]} 19. Rxd1 {[%emt 0:02:06]} Rd8 {[%emt 0:02:28]} 20. Rc1 {[%emt 0:00:57]} Bd6 {[%emt 0:02:47]} 21. Kg2 {[%emt 0:00:36]} Rd7 {[%emt 0:02:15]} 22. Kf3 {[%emt 0:01:34]} Rc7 {[%emt 0:06:59]} 23. Rd1 {[%emt 0:04:22]} b5 {[%emt 0:02:23]} 24. h3 {[%emt 0:22:53]} b4 {[%emt 0:02:02]} 25. Be1 {[%emt 0:03:40]} Rc2 {[%emt 0:03:32]} 26. Rd2 {[%emt 0:03:56]} Rc1 {[%emt 0:00:49]} 27. Re2 {[%emt 0:04:22]} f5 {[%emt 0:04:05]} 28. b3 {[%emt 0:09:07]} Rd1 {[%emt 0:08:46]} 29. Bd2 {[%emt 0:06:01]} Kf6 {[%emt 0:01:38]} 30. Be1 {[%emt 0:03:47]} a5 {[%emt 0:02:52]} 31. Rd2 {[%emt 0:05:07]} Rxe1 {[%emt 0:00:35]} 32. Rxd6 {[%emt 0:00:15]} Ra1 {[%emt 0:02:45]} 33. Rd2 {[%emt 0:00:12]} Ke7 {[%emt 0:01:30]} 34. Kg2 $11 {[%emt 0:00:17]} 1/2-1/2

[Event "9. Korbacher Open 2017"]
[Site "Korbach"]
[Date "2017.10.19"]
[Round "1"]
[White "Mak, Nico"]
[Black "Van Randtwijk, Mick"]
[Result "1/2-1/2"]
[ECO "B30"]
[WhiteElo "1799"]
[BlackElo "2028"]
[Annotator "NA RC"]
[PlyCount "160"]
[EventDate "2017.??.??"]
[EventType "swiss"]
[EventCountry "GER"]
[SourceTitle "playchess.com"]
[Source "ChessBase"]
[SourceQuality "1"]
[TimeControl "40/5400+30:1800+30"]

{[%evp 9,160,18,23,14,9,0,22,12,10,15,5,32767,9,6,0,0,0,0,-14,-15,9,0,0,-4,3,26,61,12,0,0,0,-72,-53,-72,-72,-85,171,32767,32767,32767,211,-94,309,32767,32767,32767,-97,-100,-100,-102,-91,-102,-90,-104,-95,-100,-31,-89,-114,-187,-254,-207,-260,-233,-213,-313,32767,32767,32767,32767,649,952,669,32767,853,831,970,1197,1370,32767,32767,1124,12837,1823,1546,1422,793,905,950,1331,1280,1791,1227,1946,32767,12843,12844,29950,29962,12844,2229,6244,29952,12847,29983,29987,12850,29983,12849,29984,29984,5331,5106,2167,5061,5069,29981,8111,29979,29979,29976,5553,12851,6213,2840,12851,29984,0,12851,12851,12851,29974,29977,29983,29983,12851,12851,29964,12851,12851,12851,12843,29983,6662,12816,5613,12796,29964,7275,29977,7964,29973,29992]} 1. e4 {[%emt 0:00:00]} c5 {[%emt 0:00:07]} 2. Nf3 {[%emt 0:00:00]} Nc6 {[%emt 0:00:37]} 3. c3 {[%emt 0:02:00]} Nf6 {[%emt 0:00:49]} 4. e5 {[%emt 0:02:51]} Nd5 {[%emt 0:00:11]} 5. Bc4 {[%emt 0:00:34]} e6 {[%emt 0:00:30]} 6. O-O {[%emt 0:00:29]} d6 {[%emt 0:01:07]} 7. d4 {[%emt 0:02:41]} cxd4 {[%emt 0:01:09]} 8. cxd4 {[%emt 0:01:18]} Be7 {[%emt 0:00:45]} 9. Re1 {[%emt 0:05:20]} O-O {[%emt 0:00:17]} 10. Nc3 {[%emt 0:02:23]} Nxc3 {[%emt 0:03:27]} 11. bxc3 {[%emt 0:01:20]} dxe5 {[%emt 0:01:12] LiveBook: 3 Games} 12. Nxe5 {[%emt 0:03:06]} Nxe5 {[%emt 0:00:09]} 13. Rxe5 {[%emt 0:01:11]} Bd6 {[%emt 0:02:17] B22: Sicilian: 2 c3} (13... Qc7 14. Qd3 Bd7 15. Bd2 Rac8 16. Bb3 Bf6 17. Rh5 g6 18. Re1 b5 19. Re3 b4 20. Rc5 Qd6 21. cxb4 Bxd4 22. Rxc8 Rxc8 {0-1 (51) Eschmann,P (2191)-Caruana,F (2594) Winterthur 2007}) 14. Rh5 {[%emt 0:08:38]} b6 $146 {[%emt 0:04:22]} ({Predecessor:} 14... g6 15. Rh6 Qc7 16. Qd3 Kg7 17. Qe3 Qxc4 18. Rh3 Rh8 19. Qf3 f5 20. Bh6+ Kf7 21. Re1 {0-1 (29) Silber,H (2279)-Dziuba,M (2475) Germany 2004}) 15. Qf3 {[%emt 0:06:45]} Qc7 $1 {[%emt 0:11:31]} 16. Bd3 {[%emt 0:14:49]} ({Reject} 16. Qxa8 Bb7 $17) 16... g6 {[%emt 0:00:09]} (16... f5 $5 {[%cal Rc7c3]} 17. Bd2 (17. Qxa8 Qxc3 18. Bb2 Qxb2 $11) 17... Bb7 $11) 17. Bh6 {[%emt 0:01:06]} Rd8 $1 {[%emt 0:09:50]} ({Worse is} 17... gxh5 18. Qf6 Bxh2+ 19. Kh1 Qe5 20. dxe5 Bxe5 21. Qxe5 f6 22. Qc7 Bd7 23. Qg3+ Kf7 24. Qg7+ Ke8 25. Qxf8#) 18. Qf6 {[%emt 0:10:29]} (18. Re1 $5 {[%cal Rd3e4]}) 18... Bf8 {[%emt 0:00:08]} 19. Bxf8 {[%emt 0:00:05]} Rxf8 {[%emt 0:00:12]} 20. Rh6 {[%emt 0:04:25]} (20. Rc1 $11 {remains equal.}) 20... Qxc3 {[%emt 0:15:39]} 21. Rd1 {[%emt 0:04:16] [#]} Qc7 $1 {[%emt 0:00:11]} 22. Bf1 {[%emt 0:04:48]} Bb7 $2 {[%emt 0:06:21]} (22... Qd8 $17 23. Qe5 Bd7) 23. Rxh7 {[%emt 0:06:23]} Kxh7 {[%emt 0:01:03]} 24. Rd3 {[%emt 0:00:17]} Qc1 {[%emt 0:01:13]} ({Inferior is} 24... Kg8 25. Rh3 Qxh2+ 26. Rxh2 Rfe8 27. Rh8#) 25. f4 $2 {[%emt 0:00:29] [#]} ({Only move:} 25. Rh3+ $18 Qh6 26. Rxh6+ Kxh6 27. h4) 25... Qxf1+ $1 {[%emt 0:00:34]} 26. Kxf1 {[%emt 0:00:13]} Ba6 {[%emt 0:00:05]} 27. Ke2 {[%emt 0:00:30] [#]} Rad8 $1 {[%emt 0:03:19]} 28. Kd2 {[%emt 0:00:37]} Bxd3 {[%emt 0:00:10]} 29. Kxd3 {[%emt 0:00:11]} Rd5 {[%emt 0:01:40]} 30. Qe7 {[%emt 0:01:39]} Kg7 {[%emt 0:00:43]} 31. Qxa7 {[%emt 0:00:34] [#]} Ra5 $1 {[%emt 0:00:41]} 32. Qxb6 {[%emt 0:01:13]} Rxa2 {[%emt 0:00:13]} (32... Rfa8 $17 33. Qb7 Ra3+ 34. Kc4 Rxa2) 33. Qb7 {[%emt 0:01:04]} Rfa8 {[%emt 0:00:19]} 34. d5 {[%emt 0:05:19]} (34. Qe4 $17 {keeps fighting.}) 34... R8a3+ {[%emt 0:01:37]} 35. Kc4 {[%emt 0:05:40]} Rc2+ {[%emt 0:00:29]} ({Worse is} 35... Rxg2 36. dxe6 Rc2+ 37. Kd4 $11) 36. Kd4 {[%emt 0:00:04]} Rd2+ {[%emt 0:00:13]} ({Inferior is} 36... Rxg2 37. dxe6 Rd2+ 38. Kc4 $11) 37. Kc4 {[%emt 0:00:42]} Rxd5 {[%emt 0:00:19]} 38. Qb2+ {[%emt 0:00:12]} Kg8 {[%emt 0:00:37]} 39. Qxa3 {[%emt 0:00:15]} Rf5 {[%emt 0:00:31]} 40. g3 {[%emt 0:02:11]} Kg7 {[%emt 0:30:14]} 41. Kd4 {[%emt 0:30:20]} Kg8 {[%emt 0:01:01]} 42. Ke4 {[%emt 0:00:21]} Kg7 {[%emt 0:00:14]} 43. Qc3+ {[%emt 0:01:56]} Kg8 {[%emt 0:00:28]} 44. g4 {[%emt 0:02:20]} Rd5 {[%emt 0:00:10]} 45. Kf3 {[%emt 0:00:00]} Kh7 {[%emt 0:00:00]} 46. Qf6 {[%emt 0:00:00]} Kg8 {[%emt 0:00:00]} 47. g5 {[%emt 0:00:00]} Kf8 {[%emt 0:00:00]} 48. Kg4 {[%emt 0:00:00]} Ke8 {[%emt 0:00:00]} 49. h4 {[%emt 0:00:00]} Rf5 {[%emt 0:00:00]} 50. Qh8+ {[%emt 0:00:00]} Ke7 {[%emt 0:00:00]} 51. h5 {[%emt 0:00:00]} gxh5+ {[%emt 0:00:00]} 52. Qxh5 {[%emt 0:00:00]} Rd5 {[%emt 0:00:00]} 53. Qh4 {[%emt 0:00:00]} Kd7 {[%emt 0:00:00]} 54. Kh5 {[%emt 0:00:00]} Rf5 {[%emt 0:00:00]} 55. Kh6 {[%emt 0:00:00]} Ke8 {[%emt 0:00:00]} 56. Kg7 {[%emt 0:00:00]} e5 {[%emt 0:00:00]} 57. Qe1 {[%emt 0:00:00]} Ke7 {[%emt 0:00:00]} 58. Qb4+ {[%emt 0:00:00]} Ke6 {[%emt 0:00:00]} 59. Qc4+ {[%emt 0:00:00]} Kd6 {[%emt 0:00:00]} 60. fxe5+ {[%emt 0:00:00]} (60. Qd3+ $142 Ke6 {[#]} 61. Qxf5+ $3 {[%mdl 512]} Kxf5 62. fxe5 Ke6 63. Kf8 f6 64. exf6 Ke5 65. Kf7) 60... Kxe5 {[%emt 0:00:00]} 61. Qc5+ {[%emt 0:00:00]} Kf4 {[%emt 0:00:00]} 62. Qc1+ {[%emt 0:00:48]} Ke5 {[%emt 0:00:00]} 63. Kh6 {[%emt 0:00:07]} (63. Qe3+ $142 Kd6 64. Qd4+ Ke6 {[#]} 65. Qf6+ $1 {[%mdl 512]} Rxf6 66. gxf6 Kd6 67. Kxf7 Kd7 68. Kg8) 63... Ke6 {[%emt 0:00:00]} 64. Qc6+ {[%emt 0:00:55]} Ke5 {[%emt 0:01:05]} 65. Qe8+ {[%emt 0:00:10]} (65. Qc4 $142 Rf4 66. Qe2+ Kd4 67. Kh5 Kd5 68. Qd3+ Kc6 69. Qe3 Rf5 70. Qe4+ Rd5 71. Qf3) 65... Kf4 {[%emt 0:01:51]} 66. Qe7 {[%emt 0:00:33]} (66. Qc8 $142 Ke4 67. Qc2+ Kf4 68. Qd3 Kg4 69. g6 fxg6 70. Kxg6 Rf3 71. Qd4+ Rf4 72. Qe3) 66... Kf3 {[%emt 0:01:23]} 67. Qf6 {[%emt 0:01:42]} Ke4 {[%emt 0:00:10]} 68. Qe7+ $2 {[%emt 0:00:59]} (68. Kg7 {mates} Rc5 69. Qe7+ Re5 {[#]} 70. Qxe5+ $1 {[%mdl 512]} Kxe5 71. Kxf7 Kf5 72. g6 Ke5 73. g7) 68... Kf3 {[%emt 0:01:31]} 69. Kh5 {[%emt 0:00:30]} Kg3 {[%emt 0:02:02]} 70. Qe4 {[%emt 0:00:48]} Rf4 {[%emt 0:00:52]} 71. Qe3+ {[%emt 0:01:42]} Rf3 {[%emt 0:00:18]} 72. Qg1+ {[%emt 0:02:05]} Kf4 {[%emt 0:00:27]} 73. Qg4+ {[%emt 0:00:01]} Ke3 {[%emt 0:00:18]} 74. Qc4 {[%emt 0:00:41]} Rf4 {[%emt 0:00:52]} 75. Qc5+ {[%emt 0:00:26]} Kf3 {[%emt 0:00:59]} 76. Kh6 {[%emt 0:00:15]} (76. Qe5 $142 Re4 77. Qd5 Ke3 78. Qxf7 Re5 79. Kh6 Re4 80. g6 Rg4 81. Qe6+ Kf4 {[#]} 82. Qxg4+ $1 {[%mdl 512]} Kxg4 83. g7) 76... Kg4 {[%emt 0:00:49]} 77. Kg7 {[%emt 0:01:00]} Rf5 {[%emt 0:00:24]} 78. Qg1+ {[%emt 0:00:36]} Kf4 {[%emt 0:00:09]} 79. Kh6 {[%emt 0:00:31]} Ke4 {[%emt 0:00:38]} 80. Qb1+ {[%emt 0:01:27]} Kf3 1/2-1/2

[Event "9. Korbacher Open 2017"]
[Site "Korbach"]
[Date "2017.10.19"]
[Round "1"]
[White "Van de Griend, Johan"]
[Black "Hoekstra, Peter"]
[Result "1-0"]
[ECO "C15"]
[WhiteElo "1797"]
[BlackElo "2074"]
[Annotator "NA RC"]
[PlyCount "55"]
[EventDate "2017.??.??"]
[EventType "swiss"]
[EventCountry "GER"]
[SourceTitle "playchess.com"]
[Source "ChessBase"]
[SourceQuality "1"]
[TimeControl "40/5400+30:1800+30"]

{[%evp 17,55,19,45,29,32767,30,107,32767,120,71,62,79,64,90,108,77,93,83,67,84,32767,52,64,39,24,43,37,50,48,29,32,29,77,69,227,32767,32767,163,32767,1143]} 1. e4 {[%emt 0:00:00]} e6 {[%emt 0:00:07]} 2. d4 {[%emt 0:00:00]} d5 {[%emt 0:00:06]} 3. Nc3 {[%emt 0:00:00]} Bb4 {[%emt 0:00:08]} 4. Bd3 {[%emt 0:00:07]} dxe4 {[%emt 0:00:25]} 5. Bxe4 {[%emt 0:00:08]} Nf6 {[%emt 0:00:05]} 6. Bd3 {[%emt 0:00:11]} c5 {[%emt 0:00:48]} 7. a3 {[%emt 0:01:49]} Bxc3+ {[%emt 0:00:32] C15: French: 3 Nc3 Bb4: Unusual White 4th moves} (7... Ba5 8. dxc5 Bxc3+ 9. bxc3 Qa5 10. Nf3 O-O 11. O-O Nbd7 12. Bf4 Nxc5 13. Bd6 Re8 14. Rb1 Nxd3 15. Qxd3 {0-1 (41) Pershin,D (2336)-Smirnov,P (2564) Kazan 2016}) 8. bxc3 {[%emt 0:00:11]} Nc6 {[%emt 0:00:11]} 9. Nf3 {[%emt 0:03:40]} O-O {[%emt 0:02:19]} 10. O-O {[%emt 0:02:26]} Qc7 {[%emt 0:03:06]} 11. Bg5 $146 {[%emt 0:09:39]} ({Predecessor:} 11. Re1 cxd4 12. cxd4 b6 13. Bg5 {1-0 (70) Marchese,E (1423)-Fichtl,A (1767) Frankfurt 2013}) 11... e5 {[%emt 0:07:12]} (11... Nd5 $14) 12. dxe5 {[%emt 0:08:44]} Ng4 {[%emt 0:02:33]} 13. h3 {[%emt 0:06:04]} (13. Bf4 $142) 13... Ngxe5 {[%emt 0:03:50]} 14. Bf4 {[%emt 0:05:02]} Nxf3+ {[%emt 0:02:21]} 15. Qxf3 {[%emt 0:00:08]} Qe7 {[%emt 0:01:12]} 16. Qg3 {[%emt 0:01:54]} Re8 {[%emt 0:07:41]} 17. Bd6 {[%emt 0:06:16]} Qf6 {[%emt 0:01:33]} 18. Bxc5 {[%emt 0:00:29]} b6 {[%emt 0:01:58]} 19. Bd6 {[%emt 0:07:41]} Bf5 {[%emt 0:02:48]} 20. Bb5 {[%emt 0:03:35]} Rac8 {[%emt 0:03:27]} 21. Rfe1 {[%emt 0:02:48]} Re6 {[%emt 0:01:19]} 22. Rxe6 {[%emt 0:07:09]} Qxe6 {[%emt 0:00:29]} 23. Ba4 {[%emt 0:02:08]} Na5 {[%emt 0:06:27]} 24. Be5 {[%emt 0:02:05]} Bg6 {[%emt 0:02:39]} 25. Rd1 {[%emt 0:02:25]} Qa2 $2 {[%emt 0:02:30]} (25... Nc6 $14 26. Rd6 Qxe5 27. Rxc6 Qe8) 26. Qg4 {[%emt 0:07:42]} Ra8 {[%emt 0:04:10]} 27. Qd4 {[%emt 0:01:46]} f6 {[%emt 0:01:10] [#]} 28. Bb3+ $18 {[%emt 0:00:19]} 1-0

[Event "9. Korbacher Open 2017"]
[Site "Korbach"]
[Date "2017.10.19"]
[Round "1"]
[White "Rehbein, Ullrich"]
[Black "Rubina, Tatiana"]
[Result "0-1"]
[ECO "D02"]
[WhiteElo "1778"]
[BlackElo "2022"]
[Annotator "NA RC"]
[PlyCount "72"]
[EventDate "2017.??.??"]
[EventType "swiss"]
[EventCountry "GER"]
[SourceTitle "playchess.com"]
[Source "ChessBase"]
[SourceQuality "1"]
[TimeControl "40/5400+30:1800+30"]

{[%evp 10,72,22,32767,7,12,0,2,15,0,0,32767,32767,32767,32767,32767,66,65,83,48,32,58,60,-148,-168,-143,-144,-151,-158,-152,-133,-183,-186,-218,-145,-173,-182,-238,-138,-190,32767,-202,-125,-204,-187,-324,-235,32767,32767,-395,-403,-528,-396,-383,0,-390,-405,-557,-548,-780,-451,-5381,-29983,-7017,-29985]} 1. d4 {[%emt 0:00:00]} d5 {[%emt 0:00:05]} 2. Nf3 {[%emt 0:00:00]} e6 {[%emt 0:00:06]} 3. Bf4 {[%emt 0:00:00]} Nf6 {[%emt 0:00:12]} 4. e3 {[%emt 0:00:01]} Be7 {[%emt 0:00:18]} 5. Bd3 {[%emt 0:01:44]} O-O {[%emt 0:01:14]} 6. h3 {[%emt 0:01:43]} c5 {[%emt 0:00:31] D02: 1 d4 d5 2 Nf3 sidelines, including 2...Nf6 3 g3 and 2...Nf6 3 Bf4} 7. c3 {[%emt 0:01:07] LiveBook: 6 Partien} Nc6 {[%emt 0:00:34]} (7... Re8 8. Nbd2 Nbd7 9. O-O Nf8 10. Qe2 N6d7 11. Bh2 Qb6 12. Rab1 Bd6 13. Bxd6 Qxd6 14. e4 dxe4 15. Nxe4 {1-0 (34) Vogel,R (2477)-Schneider,J (2261) Willingen 2017}) 8. O-O {[%emt 0:00:55]} c4 {[%emt 0:02:30]} 9. Bc2 {[%emt 0:02:27]} b5 {[%emt 0:00:12]} 10. Nbd2 {[%emt 0:01:35]} b4 {[%emt 0:00:50]} 11. e4 {[%emt 0:06:30]} bxc3 {[%emt 0:00:34]} 12. bxc3 {[%emt 0:00:42]} g6 $146 {[%emt 0:04:44]} ({Predecessor:} 12... Qa5) 13. Re1 {[%emt 0:09:17]} Bd7 {[%emt 0:03:02]} 14. Nf1 {[%emt 0:11:55]} Qa5 {[%emt 0:04:02]} 15. Qd2 {[%emt 0:03:15]} Ba3 {[%emt 0:05:09]} 16. Bd6 $2 {[%emt 0:09:55]} (16. e5 $16 {stays on course.} Nh5 17. Bh6) 16... Bxd6 {[%emt 0:12:12]} 17. e5 {[%emt 0:00:38]} Be7 {[%emt 0:00:06]} 18. exf6 {[%emt 0:02:50]} Bxf6 {[%emt 0:00:07]} 19. h4 {[%emt 0:03:19]} Rab8 {[%emt 0:02:11]} 20. Rab1 {[%emt 0:01:57]} Rxb1 {[%emt 0:01:54]} ({Avoid the trap} 20... Qxa2 $2 21. Ra1 $18) 21. Rxb1 {[%emt 0:00:01]} Qxa2 {[%emt 0:01:34]} 22. h5 {[%emt 0:00:01]} Na5 {[%emt 0:16:49]} 23. Qf4 {[%emt 0:05:52]} (23. Qd1 $142 Qa3 24. Qe1) 23... Be7 {[%emt 0:12:39]} 24. Qc1 {[%emt 0:06:33]} Nb3 {[%emt 0:03:18]} 25. Qd1 {[%emt 0:02:00]} Ba4 {[%emt 0:02:28]} (25... a5 $19 26. hxg6 hxg6) 26. hxg6 {[%emt 0:02:17]} hxg6 {[%emt 0:00:16]} ({Don't play} 26... fxg6 27. Bxb3 Bxb3 28. Qe1 $17) 27. Ne5 $2 {[%emt 0:02:13]} (27. Ne3 {keeps fighting.}) 27... Bf6 {[%emt 0:07:41]} 28. Nd3 {[%emt 0:12:44]} cxd3 {[%emt 0:02:13]} 29. Bxb3 {[%emt 0:00:26]} Bxb3 {[%emt 0:00:31]} 30. Rxb3 $1 $11 {[%emt 0:00:50] and White is okay.} Qc2 {[%emt 0:01:19]} (30... Rc8 31. g3) 31. Ne3 {[%emt 0:00:46]} Qa2 $2 {[%emt 0:02:35]} (31... Qe2 $19 32. g3 Rc8) 32. Rb4 $2 {[%emt 0:03:09]} Qe2 {[%emt 0:03:50]} 33. Ra4 {[%emt 0:03:10]} Rc8 {[%emt 0:01:16]} 34. Qa1 {[%emt 0:03:21]} d2 {[%emt 0:01:36]} 35. Ra2 {[%emt 0:00:58]} (35. Qf1 $142 Qe1 36. Ra1 Qxf1+ 37. Kxf1) 35... Qe1+ {[%emt 0:00:43]} 36. Kh2 Qxf2 0-1

[Event "9. Korbacher Open 2017"]
[Site "Korbach"]
[Date "2017.10.19"]
[Round "1"]
[White "Deutsch, Christoph"]
[Black "Li, Zhuoling"]
[Result "0-1"]
[ECO "B32"]
[WhiteElo "1755"]
[BlackElo "2007"]
[Annotator "NA RC"]
[PlyCount "60"]
[EventDate "2017.??.??"]
[EventType "swiss"]
[EventCountry "GER"]
[SourceTitle "playchess.com"]
[Source "ChessBase"]
[SourceQuality "1"]
[TimeControl "40/5400+30:1800+30"]

{[%evp 11,60,26,34,32767,31,27,31,25,27,32767,37,37,47,34,47,22,18,25,16,-6,24,-46,-38,-101,-92,-248,-179,-178,-184,-178,-172,-183,-206,-208,-169,-180,-168,-170,-178,-747,-756,-913,-945,-958,-950,-989,-1045,-29996,-29997,-29997,-29998]} 1. e4 {[%emt 0:00:00]} c5 {[%emt 0:00:11]} 2. Nf3 {[%emt 0:00:00]} Nc6 {[%emt 0:00:15]} 3. d4 {[%emt 0:00:14]} cxd4 {[%emt 0:00:10]} 4. Nxd4 {[%emt 0:00:17]} e5 {[%emt 0:00:20]} 5. Nb5 {[%emt 0:00:39]} d6 {[%emt 0:00:14]} 6. c4 {[%emt 0:00:40]} Be7 {[%emt 0:01:31]} 7. Be2 {[%emt 0:02:00]} Be6 {[%emt 0:01:42]} 8. N1c3 {[%emt 0:01:21]} a6 {[%emt 0:05:36]} 9. Na3 {[%emt 0:00:55]} Nf6 {[%emt 0:00:33]} 10. O-O {[%emt 0:01:47]} O-O {[%emt 0:01:20]} 11. Be3 {[%emt 0:02:37] LiveBook: 65 Partien} Rc8 {[%emt 0:03:26]} 12. Rc1 {[%emt 0:03:32]} h6 {[%emt 0:03:16]} 13. h3 {[%emt 0:03:19] B32: Sicilian: Löwenthal and Kalashnikov Variations} (13. Qd2 Ng4 14. Bxg4 Bxg4 15. Nd5 Bg5 16. Nc2 Be6 17. Rfd1 Bxe3 18. Ndxe3 Qh4 19. f3 Rfd8 20. a4 Qg5 21. b4 Ne7 22. Ne1 Nc6 23. N1c2 Ne7 24. Ne1 Nc6 25. N1c2 {½-½ (25) Polgar,J (2682)-Radjabov,T (2740) Baku 2010}) 13... Nh7 {[%emt 0:07:19]} 14. Nd5 {[%emt 0:08:13]} Bg5 {[%emt 0:07:49]} 15. Nc2 $146 {[%emt 0:12:01]} ({Predecessor:} 15. Bb6 Qd7 16. Rc3 Kh8 17. Rd3 f5 18. Ne3 fxe4 19. Rxd6 Qf7 20. Bh5 Qe7 21. Rxe6 Qxe6 {0-1 (46) Van Foreest,J (2457)-Jakubiec,A (2535) Belgium 2014}) 15... Bxd5 {[%emt 0:03:41]} 16. Qxd5 {[%emt 0:03:57]} (16. Bxg5 $11 Nxg5 17. exd5) 16... Bxe3 {[%emt 0:01:38]} 17. Nxe3 {[%emt 0:01:19] [#]} ({Better is} 17. fxe3 $15 Qg5 18. Rcd1 (18. Qxd6 Rcd8 $17)) 17... Nd4 $1 {[%emt 0:01:09]} 18. Bg4 $2 {[%emt 0:04:03]} (18. Bd3 $17) 18... Nf6 {[%emt 0:05:26]} 19. Qxb7 {[%emt 0:01:39]} Nxg4 {[%emt 0:00:16]} 20. Nxg4 {[%emt 0:00:49]} Ne2+ {[%emt 0:00:31]} 21. Kh2 {[%emt 0:00:30]} Nxc1 {[%emt 0:00:21]} 22. Rxc1 {[%emt 0:00:19]} h5 {[%emt 0:03:00]} 23. Ne3 {[%emt 0:01:52]} Rb8 {[%emt 0:01:09]} 24. Qxa6 {[%emt 0:02:10]} Rxb2 {[%emt 0:00:16]} 25. Nc2 $2 {[%emt 0:07:03]} (25. Rf1) 25... Qg5 {[%emt 0:02:40]} 26. Ne3 {[%emt 0:01:16]} Qf4+ {[%emt 0:01:27]} 27. Kh1 {[%emt 0:01:23]} Qxf2 {[%emt 0:00:40]} 28. Qa3 {[%emt 0:01:07]} Re2 {[%emt 0:01:07]} 29. Rc3 {[%emt 0:01:29]} Re1+ {[%emt 0:00:55]} 30. Kh2 {[%emt 0:00:08]} Qf4+ {[%emt 0:00:18]} 0-1